bitfinex/quotes_ETHUSD_20250623
["timestamp","ask_amount","ask_price","bid_price","bid_amount"]
[1750703758359,1.1524,2313.6,2312.2,8.497]
[1750703758360,1.1524,2313.5,2312.2,8.497]
[1750703758533,1.1524,2313.5,2312.2,12.82178608]
[1750703758741,1.1524,2313.5,2312.2,8.497]
[1750703758937,1.11524,2313.4,2312.3,8.499]
[1750703759144,0.005,2313.7,2312.4,1.1343]
[1750703759337,0.005,2313.7,2313.1,4.32305913]
[1750703759540,0.005,2313.7,2313.2,4.3230054]
[1750703759972,0.005,2313.7,2312.6,4.32413733]
[1750703760184,0.005,2313.7,2312.7,1.55261373]
[1750703760354,0.005,2313.7,2313.3,4.32275208]
[1750703760551,0.005,2313.7,2312.4,1.1343]
[1750703760784,10.0,2313.4,2312.0,5.72516378]
[1750703760987,1.0682,2312.9,2312.0,1.4]
[1750703761139,1.0682,2312.9,2312.0,5.72519389]
[1750703761347,0.55,2312.8,2312.0,1.4]
[1750703761542,1.0682,2312.7,2312.0,1.4]
[1750703761855,1.0682,2312.3,2312.0,1.4]
[1750703764387,1.1435,2312.1,2312.0,1.4]
[1750703764552,1.36026322,2312.1,2312.0,1.4]
[1750703765396,2.38439542,2312.1,2312.0,1.4]
[1750703766042,1.1284,2312.0,2311.1,0.04]
[1750703766291,1.1284,2311.8,2311.1,0.04]
[1750703766470,12.1525322,2311.8,2311.1,0.04]
[1750703766778,14.94038542,2311.7,2311.1,0.04]
[1750703767083,1.0241322,2311.6,2311.1,0.04]
[1750703767287,1.133,2311.5,2311.1,0.04]
[1750703767460,12.1571322,2311.5,2311.1,0.04]
[1750703767664,1.0241322,2311.4,2311.1,0.04]
[1750703767962,1.21571322,2311.4,2311.1,0.04]
[1750703768290,2.702,2311.4,2311.1,0.04]
[1750703768589,3.40652191,2311.4,2311.1,0.04]
[1750703768965,0.70452191,2311.4,2311.1,0.04]
[1750703769568,0.70452191,2311.4,2311.1,4.36676697]
[1750703769984,4.6166,2311.2,2307.6,4.33333509]
[1750703770190,13.90308904,2309.0,2307.8,4.33303699]
[1750703770394,15.3081508,2308.9,2307.3,5.43813196]
[1750703770602,15.3081508,2308.9,2307.3,1.1041]
[1750703770808,1.02391141,2308.8,2307.3,1.1041]
[1750703771013,1.1076,2308.6,2307.3,1.1041]
[1750703771198,1.0693,2309.3,2308.2,5.60282632]
[1750703771493,1.0693,2309.3,2308.3,0.56428263]
[1750703771677,1.0693,2309.3,2308.3,3.60228263]
[1750703771894,1.0693,2309.3,2308.3,0.56428263]
[1750703772056,1.0693,2309.3,2308.2,3.038]
[1750703772252,1.0693,2309.3,2308.1,0.04]
[1750703773472,10.0,2309.1,2308.1,0.04]
[1750703774078,10.0,2309.2,2308.1,0.04]
[1750703775191,1.0693,2309.3,2308.1,0.04]
[1750703775354,1.0693,2309.3,2308.2,1.146]
[1750703775553,3.039,2310.2,2308.2,1.146]
[1750703775554,1.0831,2310.1,2308.6,4.33153694]
[1750703775802,1.0831,2310.1,2308.3,4.33219252]
[1750703775803,0.2264817,2310.0,2308.3,4.33219252]
[1750703775956,10.0,2309.9,2308.2,5.4782386]
[1750703776301,14.12957074,2310.0,2308.3,16.30112006]
[1750703776455,1.52126707,2309.9,2308.7,4.33128761]
[1750703776655,11.0831,2310.1,2308.9,4.33102895]
[1750703776905,11.0831,2310.1,2308.5,4.33181719]
[1750703777113,1.0831,2310.1,2308.4,1.74471201]
[1750703777278,11.0831,2310.1,2309.0,4.33082372]
[1750703777474,1.0831,2310.1,2309.1,3.039]
[1750703777677,1.0831,2310.1,2308.8,11.958]
[1750703777975,11.0831,2310.1,2308.7,4.33144115]
[1750703778308,1.0831,2310.1,2308.9,4.33095626]
[1750703778513,1.0831,2310.1,2308.9,4.33097076]
[1750703778710,1.0831,2310.1,2308.6,12.91441284]
[1750703778874,1.0831,2310.1,2308.7,6.05605718]
[1750703779106,10.0,2310.0,2308.7,1.72461961]
[1750703779410,0.55,2309.9,2308.9,0.9]
[1750703780186,0.53,2309.3,2308.9,0.9]
[1750703780712,1.3265,2309.3,2308.9,0.9]
[1750703781001,1.3265,2309.3,2308.5,4.33165189]
[1750703781245,1.3265,2309.3,2308.3,4.33219252]
[1750703781390,1.3265,2309.3,2308.2,3.04]
[1750703781595,1.3265,2309.3,2308.2,9.00241869]
[1750703781794,1.3265,2309.3,2308.5,4.33168685]
[1750703781994,1.3265,2309.3,2308.3,4.33219252]
[1750703782163,1.3265,2309.3,2308.7,4.33132413]
[1750703782592,1.3265,2309.3,2308.7,4.33144193]
[1750703782800,1.3265,2309.3,2308.6,4.33160344]
[1750703782997,1.3265,2309.3,2308.7,4.33144193]
[1750703783295,1.3265,2309.3,2308.8,4.33125387]
[1750703783497,0.53,2309.3,2308.8,0.86628573]
[1750703783795,0.53,2309.3,2308.7,0.9575]
[1750703783984,0.53,2309.3,2309.1,4.33056627]
[1750703784163,0.53,2309.3,2309.1,4.33059336]
[1750703784364,0.53,2309.3,2309.0,4.33087361]
[1750703784681,0.53,2309.3,2309.1,4.33054585]
[1750703785014,0.53,2309.3,2309.2,5.23050407]
[1750703785324,0.53,2309.3,2309.2,0.9]
[1750703786665,0.53,2309.3,2309.2,5.23050407]
[1750703787180,1.81437494,2310.3,2309.4,4.33001445]
[1750703787375,0.7965,2310.3,2309.8,4.32924698]
[1750703787577,0.7965,2310.3,2309.8,8.824]
[1750703787897,0.7965,2310.3,2309.9,4.32906456]
[1750703788100,0.18343,2310.2,2309.8,8.811]
[1750703788269,0.18343,2310.1,2309.8,8.811]
[1750703788468,0.7965,2310.3,2309.8,8.811]
[1750703788469,0.18342717,2310.0,2309.8,8.811]
[1750703788765,0.18342563,2309.9,2309.4,4.33003533]
[1750703788993,0.18374098,2309.8,2309.4,8.803]
[1750703789298,0.18374098,2309.7,2309.6,4.32975406]
[1750703789500,0.7965,2310.3,2310.1,4.32872491]
[1750703789799,1.02083554,2310.7,2310.3,4.32842021]
[1750703790002,1.20469386,2310.6,2310.3,4.32842021]
[1750703790201,0.7965,2310.8,2310.4,4.32824409]
[1750703790202,0.18385832,2310.5,2310.4,4.32824409]
[1750703790504,0.18385832,2310.5,2310.0,8.8]
[1750703790686,0.04,2310.9,2310.5,4.32805013]
[1750703790886,0.18386287,2310.8,2310.7,4.3276929]
[1750703791093,0.04,2310.9,2310.6,4.32775421]
[1750703791403,0.18417406,2310.8,2310.7,4.3276929]
[1750703791967,0.04,2310.9,2310.8,4.32750562]
[1750703792174,0.22422046,2310.9,2310.8,4.32750562]
[1750703792373,0.04,2310.9,2310.8,4.32750562]
[1750703793618,0.04,2310.9,2310.8,5.09524789]
[1750703794923,0.04,2310.9,2310.8,16.79224789]
[1750703795111,0.04,2310.9,2310.8,8.747]
[1750703795426,0.04,2310.9,2310.8,13.07450562]
[1750703796024,0.04,2310.9,2310.8,0.9]
[1750703796196,0.04,2310.9,2310.8,13.96950562]
[1750703796587,0.04,2310.9,2310.8,9.642]
[1750703796789,0.04,2310.9,2310.8,16.09351513]
[1750703797185,0.04,2310.9,2310.8,19.02451513]
[1750703797599,0.04,2310.9,2310.8,5.22750562]
[1750703797800,0.04,2310.9,2310.8,13.95350562]
[1750703798116,0.04,2310.9,2310.8,23.95350562]
[1750703798727,0.04,2311.9,2311.7,4.32582082]
[1750703798930,0.04,2311.9,2311.8,16.42121578]
[1750703799134,0.04,2312.9,2312.6,1.0352]
[1750703799494,0.04,2312.9,2312.7,8.724]
[1750703799830,0.04,2312.9,2312.8,15.3589634]
[1750703800036,0.18934263,2313.7,2313.4,4.32249859]
[1750703800202,0.18934263,2313.7,2313.6,4.32226832]
[1750703800203,0.005,2313.7,2313.6,4.32226832]
[1750703800396,0.005,2313.7,2313.6,8.721]
[1750703800926,0.005,2313.7,2312.9,4.32357646]
[1750703801101,0.005,2313.7,2313.0,8.716]
[1750703801303,0.005,2313.7,2313.6,4.32226832]
[1750703801516,0.005,2313.7,2313.6,15.97726832]
[1750703801916,0.005,2313.7,2313.6,25.97726832]
[1750703802629,0.005,2313.7,2313.6,14.32226832]
[1750703802851,0.005,2313.7,2313.6,27.19841466]
[1750703803055,0.5,2314.5,2314.4,5.29837428]
[1750703803345,0.5,2314.5,2314.1,10.395]
[1750703803543,0.5,2314.5,2313.9,8.699]
[1750703803927,13.90308904,2314.3,2313.6,8.7]
[1750703804133,0.55,2314.1,2313.4,8.696]
[1750703804448,0.55,2314.1,2312.8,2.94]
[1750703804651,0.8415,2313.7,2312.2,0.9586]
[1750703804851,0.8415,2313.7,2312.5,4.32432432]
[1750703805056,0.55,2313.6,2312.6,8.689]
[1750703805255,0.8415,2313.7,2312.7,4.32388922]
[1750703805468,1.08415,2313.6,2312.6,13.01313083]
[1750703805616,1.08415,2313.6,2312.6,8.689]
[1750703806310,11.08415,2313.6,2312.6,8.689]
[1750703806753,0.8415,2313.5,2312.3,10.39]
[1750703807051,10.0,2313.4,2312.3,10.39]
[1750703807258,2.4744589,2313.3,2312.4,8.662]
[1750703807462,2.4744589,2313.3,2312.5,4.32427838]
[1750703807631,10.9278,2313.2,2312.4,8.662]
[1750703807964,0.55,2312.9,2312.1,0.04]
[1750703808165,1.4778,2312.9,2312.1,0.04]
[1750703808376,0.55,2312.5,2312.1,0.04]
[1750703808669,0.9278,2312.6,2312.1,0.04]
[1750703808879,0.9278,2312.6,2312.2,4.32484534]
[1750703809076,0.9278,2312.6,2312.3,8.649]
[1750703809439,0.9278,2313.0,2312.3,8.649]
[1750703809645,2.02058,2313.0,2312.4,8.64]
[1750703809839,2.02058,2313.0,2312.1,0.04]
[1750703810160,2.02058,2313.0,2312.2,12.96484184]
[1750703810378,2.02058,2313.0,2312.2,8.64]
[1750703810879,0.9278,2313.0,2312.5,4.32423961]
[1750703811228,0.9278,2313.0,2312.3,4.32469835]
[1750703811442,0.9278,2313.4,2312.4,4.32451133]
[1750703811780,0.9278,2314.0,2313.6,4.32225337]
[1750703811943,0.9278,2314.0,2313.8,4.32189471]
[1750703812149,0.9278,2314.4,2313.7,8.621]
[1750703812461,0.9278,2314.4,2313.8,12.95189373]
[1750703812795,0.9278,2314.4,2313.8,10.35740901]
[1750703812944,0.9278,2314.4,2313.9,4.32170793]
[1750703813141,0.9278,2314.4,2314.1,4.32122711]
[1750703813565,0.9278,2314.4,2313.9,4.32170793]
[1750703813566,0.5,2314.5,2313.9,4.32170793]
[1750703814075,0.5,2314.5,2314.4,4.32077428]
[1750703814290,0.5,2314.5,2314.3,8.615]
[1750703814652,0.5,2314.5,2313.3,1.0249]
[1750703814845,10.9278,2314.3,2312.9,0.9747]
[1750703815049,10.0,2314.1,2313.2,12.93092661]
[1750703815249,10.0,2314.1,2313.3,4.32282438]
[1750703815472,10.0,2314.1,2313.2,8.608]
[1750703815688,10.9278,2314.0,2312.5,10.39]
[1750703815986,0.18338363,2313.9,2312.8,4.32362936]
[1750703816141,0.18338363,2313.9,2312.7,4.32395036]
[1750703816142,14.83088904,2313.7,2312.7,4.32390542]
[1750703816346,11.20165353,2313.6,2312.7,12.92590542]
[1750703816561,0.18348132,2313.5,2312.7,12.92590542]
[1750703816900,0.9278,2313.4,2312.7,8.599]
[1750703817468,0.9278,2313.4,2312.7,12.92294545]
[1750703817664,0.9278,2313.4,2312.5,10.39]
[1750703817665,0.18347818,2313.3,2312.5,10.39]
[1750703818002,1.50143672,2313.3,2312.1,0.04]
[1750703818177,0.9278,2312.9,2312.1,0.04]
[1750703818378,0.18370027,2312.8,2312.1,0.04]
[1750703818572,0.18370027,2312.8,2312.1,4.36494036]
[1750703818770,0.18370027,2312.8,2312.1,0.04]
[1750703818977,11.62281829,2312.8,2312.1,0.04]
[1750703819181,1.20197475,2312.7,2312.1,0.04]
[1750703819508,1.20197475,2312.7,2312.1,4.36500269]
[1750703819713,1.01827448,2312.7,2311.8,8.587]
[1750703819874,0.22614054,2312.8,2312.3,4.32461447]
[1750703820288,0.22614054,2312.8,2312.4,8.585]
[1750703820488,0.9278,2312.9,2312.6,4.32400648]
[1750703820688,1.01827448,2313.1,2312.8,4.3237634]
[1750703821028,1.15390272,2313.2,2312.6,4.32413394]
[1750703821198,2.1721772,2313.2,2312.8,4.32362916]
[1750703821396,2.1721772,2313.2,2312.9,4.32348652]
[1750703821598,2.1721772,2313.2,2312.8,4.3236568]
[1750703821599,1.15390272,2313.2,2312.8,4.3236568]
[1750703822106,1.01827448,2313.1,2312.6,8.57]
[1750703822414,1.01827448,2313.1,2313.0,4.32338953]
[1750703822580,0.9278,2313.5,2313.1,4.3230423]
[1750703822780,0.9278,2313.5,2313.0,4.32338953]
[1750703822781,1.01827448,2313.4,2313.0,4.323265]
[1750703823004,1.01827448,2313.3,2312.9,4.32347358]
[1750703823194,1.01827448,2313.2,2313.0,4.32337666]
[1750703823405,1.01827448,2313.4,2313.0,4.32337666]
[1750703823600,1.01827448,2313.3,2312.9,4.32353188]
[1750703823885,1.02566602,2313.7,2313.4,4.32250223]
[1750703824113,1.02566602,2313.6,2313.4,12.86950223]
[1750703824345,1.02566602,2313.8,2313.4,8.547]
[1750703824655,1.02566602,2313.7,2313.4,8.547]
[1750703824811,1.02566602,2313.6,2313.2,4.32290772]
[1750703825019,1.02566602,2313.6,2312.9,0.86472277]
[1750703825020,0.04,2313.9,2313.3,8.543]
[1750703825354,1.02599139,2313.8,2313.3,8.543]
[1750703825526,0.9278,2313.6,2312.3,0.9845]
[1750703825730,0.9278,2313.6,2311.3,4.326482]
[1750703825731,0.9278,2312.9,2311.5,0.9845]
[1750703825933,0.9278,2312.9,2311.3,2.752]
[1750703825934,0.9278,2312.7,2311.3,2.752]
[1750703826247,1.02599139,2312.6,2311.4,12.86638175]
[1750703826483,1.02599139,2312.5,2311.4,8.54]
[1750703826628,1.02599139,2312.4,2311.7,4.32572438]
[1750703826832,1.02599139,2312.3,2311.4,12.86631403]
[1750703827033,1.02599139,2312.2,2311.4,10.1018314]
[1750703827218,1.02599139,2312.1,2311.4,10.1018314]
[1750703827421,4.48158401,2313.1,2312.6,4.32413733]
[1750703827621,1.02829202,2313.0,2312.5,4.32423532]
[1750703827840,0.9278,2313.1,2312.4,8.535]
[1750703827841,1.02829202,2312.9,2312.4,8.535]
[1750703828051,1.02829202,2312.8,2312.4,8.535]
[1750703828255,1.02829202,2312.7,2312.3,12.85567393]
[1750703828438,1.02829202,2312.6,2312.4,4.32441016]
[1750703828621,1.02829202,2312.5,2312.4,4.32441016]
[1750703829034,1.02829202,2312.5,2312.3,8.531]
[1750703829375,1.02829202,2312.4,2312.3,12.85565847]
[1750703829536,1.02829202,2312.4,2312.3,8.518]
[1750703829734,1.02829202,2312.4,2312.3,12.84269835]
[1750703830158,1.02829202,2312.4,2312.3,8.518]
[1750703830325,1.02829202,2312.4,2312.3,12.84069835]
[1750703830725,0.9278,2313.1,2312.4,4.32441198]
[1750703830956,1.02889238,2313.0,2312.5,4.32417764]
[1750703831137,1.02889238,2312.9,2312.4,4.32437456]
[1750703831353,0.9278,2312.7,2311.5,1.0274]
[1750703831606,1.02889238,2312.6,2311.6,12.83689289]
[1750703831883,1.02889238,2312.5,2312.0,4.32513538]
[1750703832088,1.21417459,2312.4,2312.1,8.506]
[1750703832265,1.21417459,2312.3,2312.0,12.82523717]
[1750703832466,1.21417459,2312.2,2312.0,8.5]
[1750703832779,1.03002488,2312.1,2312.0,8.5]
[1750703832977,1.21549517,2312.1,2312.0,8.5]
[1750703833281,0.9278,2312.0,2311.1,1.0674]
[1750703833448,1.21549342,2311.9,2311.5,4.32608445]
[1750703833786,1.21549342,2311.8,2311.4,4.32628981]
[1750703834107,1.21549342,2311.7,2311.3,8.486]
[1750703834288,1.21549342,2311.6,2311.3,8.486]
[1750703834436,1.21549342,2311.5,2311.3,8.486]
[1750703834635,1.03002488,2311.4,2311.3,8.486]
[1750703835174,1.03002488,2311.4,2311.2,4.32666581]
[1750703835175,1.95782488,2311.4,2311.2,4.32666581]
[1750703835361,1.02994376,2311.3,2311.1,0.04]
[1750703835552,0.9278,2311.4,2311.1,0.04]
[1750703835865,1.21520187,2311.3,2311.1,0.04]
[1750703836068,0.9278,2311.4,2311.1,0.04]
[1750703836270,1.21506128,2311.3,2311.1,0.04]
[1750703836470,1.21506128,2311.2,2311.1,0.04]
[1750703836770,1.21505899,2311.2,2311.1,0.04]
[1750703836970,11.70464489,2311.2,2311.1,0.04]
[1750703837174,1.2150116,2311.2,2311.1,0.04]
[1750703837748,1.21501312,2311.2,2311.1,0.04]
[1750703838966,1.21475141,2311.2,2311.1,0.04]
[1750703839159,1.2147514,2311.2,2311.1,0.04]
[1750703839361,0.18491563,2311.2,2311.1,0.04]
[1750703839650,1.72693472,2311.2,2311.1,0.04]
[1750703839970,1.2147514,2311.2,2311.1,0.04]
[1750703840174,0.18491563,2311.2,2311.1,0.04]
[1750703840578,0.18491563,2311.3,2311.1,4.36694387]
[1750703840790,0.9272,2311.8,2311.6,4.32590739]
[1750703840951,0.9272,2311.8,2311.2,4.32675666]
[1750703841153,0.9272,2311.8,2311.4,4.32635116]
[1750703841357,0.9272,2311.8,2311.1,0.04]
[1750703841568,0.9272,2311.8,2311.6,4.3260014]
[1750703841781,0.9272,2312.4,2311.9,4.32527976]
[1750703842098,0.18469647,2312.3,2312.1,4.32505574]
[1750703842253,0.18469647,2312.3,2311.9,4.32531633]
[1750703842454,0.18469647,2312.3,2311.8,4.32556643]
[1750703842760,0.18469647,2312.2,2311.3,8.426]
[1750703842950,1.02604219,2312.3,2311.4,4.32624003]
[1750703843152,1.02604219,2312.3,2311.5,4.32617452]
[1750703843347,1.02604219,2312.3,2311.7,4.32581067]
[1750703843348,0.18481398,2312.2,2311.7,4.32581067]
[1750703843599,0.18481398,2312.2,2311.3,13.72720404]
[1750703843600,0.18481398,2312.1,2311.3,9.40066283]
[1750703843756,4.70624219,2312.4,2311.3,9.40066283]
[1750703843757,0.1848164,2312.0,2311.3,9.40066283]
[1750703843952,1.02604219,2312.3,2311.5,0.5]
[1750703844172,1.65545903,2312.2,2311.5,0.5]
[1750703844379,10.18483481,2312.1,2311.5,0.5]
[1750703844578,2.13807312,2312.0,2311.1,8.448]
[1750703844809,0.18483093,2311.9,2311.1,8.448]
[1750703844981,0.18483093,2311.9,2311.1,0.04]
[1750703844982,0.18483093,2311.8,2311.1,0.04]
[1750703845299,0.18483093,2311.7,2311.1,0.04]
[1750703845459,0.9272,2311.5,2311.1,0.04]
[1750703845779,0.18483093,2311.4,2311.1,0.04]
[1750703845976,1.95324219,2311.5,2311.1,0.04]
[1750703846990,0.184975,2311.4,2311.1,0.04]
[1750703847489,0.1849721,2311.3,2311.1,0.04]
[1750703847653,1.95324219,2311.5,2311.1,0.04]
[1750703847853,1.38022972,2311.4,2311.1,0.04]
[1750703848054,0.18490565,2311.3,2311.1,0.04]
[1750703848698,1.02604219,2311.5,2311.1,0.04]
[1750703848884,0.9272,2311.9,2311.1,4.36677608]
[1750703849200,0.18486043,2311.8,2311.1,0.04]
[1750703849589,0.18485973,2311.7,2311.1,4.3667644]
[1750703849794,0.9272,2311.9,2311.1,0.47667644]
[1750703849996,0.18486312,2311.8,2311.1,0.04]
[1750703850197,1.0284919,2311.8,2311.1,12.74986704]
[1750703850495,0.1848749,2311.7,2311.1,4.36686704]
[1750703850702,0.1848749,2311.7,2311.1,0.04]
[1750703851215,0.1848749,2311.7,2311.3,4.32653052]
[1750703851513,0.1848749,2311.7,2311.4,4.32638227]
[1750703851808,1.9556919,2311.9,2311.5,4.32605328]
[1750703852108,1.0284919,2312.2,2312.1,4.32507244]
[1750703852300,0.22618887,2312.5,2312.1,4.32505783]
[1750703852500,10.22618887,2312.5,2311.7,1.0289]
[1750703852675,0.9272,2312.2,2311.3,4.32647954]
[1750703852875,0.18487201,2312.1,2311.4,4.3262516]
[1750703853091,0.18487201,2312.1,2311.5,4.32616557]
[1750703853414,0.46545865,2312.2,2311.5,4.3260317]
[1750703853609,1.28871889,2312.4,2311.2,8.372]
[1750703853814,0.22618887,2312.5,2311.8,4.32563129]
[1750703854175,0.22618887,2312.5,2311.9,4.32544108]
[1750703854877,0.22618887,2312.5,2312.0,4.32516007]
[1750703855079,0.22618887,2312.5,2311.8,4.32555827]
[1750703855273,0.55,2312.4,2311.4,12.67826409]
[1750703855482,0.55,2312.4,2311.4,12.67828577]
[1750703855687,10.0,2312.3,2311.4,12.67828577]
[1750703855887,1.3211,2312.2,2311.4,12.67828577]
[1750703856088,1.3211,2312.2,2311.3,4.32648197]
[1750703856289,1.0044,2312.1,2311.3,12.67248197]
[1750703856488,1.0044,2312.1,2311.3,12.67239682]
[1750703856699,1.0044,2312.1,2311.4,4.32636916]
[1750703856897,0.23255,2312.0,2311.6,4.32600114]
[1750703857099,1.0044,2312.1,2311.5,4.32611747]
[1750703857509,0.04,2311.9,2311.5,4.24611747]
[1750703857711,0.04,2311.9,2310.9,10.394]
[1750703857881,0.04,2311.9,2311.1,12.66185509]
[1750703858400,0.04,2311.9,2311.2,4.32672846]
[1750703858593,0.04,2311.9,2311.4,4.32630324]
[1750703858788,0.04,2311.9,2311.3,4.3264574]
[1750703858992,0.04,2311.9,2311.2,4.32665254]
[1750703859590,0.04,2311.9,2311.3,4.32649222]
[1750703859791,0.04,2311.9,2311.2,4.32664729]
[1750703859986,0.04,2311.9,2311.5,4.32607239]
[1750703860316,0.04,2311.9,2311.2,1.69885179]
[1750703860516,11.87194193,2311.7,2310.5,1.0514]
[1750703860716,20.521,2311.6,2310.8,4.32748456]
[1750703861096,20.521,2311.6,2310.5,1.0514]
[1750703861097,17.86,2311.6,2310.5,1.0514]
[1750703861283,10.0,2311.4,2310.7,4.32756064]
[1750703861480,10.0,2311.4,2310.0,4.32882221]
[1750703861481,1.0044,2311.3,2310.4,4.32812874]
[1750703861681,1.0044,2311.3,2310.2,1.0514]
[1750703861905,1.0044,2311.3,2310.6,4.32780319]
[1750703862109,1.0044,2311.3,2310.6,4.32784309]
[1750703862418,1.10044,2311.2,2310.7,4.32754306]
[1750703862625,1.10044,2311.2,2310.3,8.306]
[1750703862795,10.0,2310.8,2309.5,0.9882]
[1750703863122,3.39404404,2311.4,2310.0,0.9882]
[1750703863437,1.0044,2311.7,2310.9,4.32720481]
[1750703863582,1.0044,2311.7,2310.4,4.32807033]
[1750703863583,0.55,2311.6,2310.5,8.343]
[1750703863784,0.55,2311.2,2310.1,4.32881693]
[1750703863989,0.55,2311.2,2310.2,4.32845034]
[1750703864199,0.55,2311.2,2310.1,4.32870423]
[1750703864626,0.55,2311.2,2310.2,4.32853347]
[1750703864813,10.0,2311.0,2310.2,4.32853347]
[1750703865125,1.2661,2310.9,2310.2,4.32853347]
[1750703865345,1.2661,2310.9,2310.4,4.32824442]
[1750703865626,10.0,2311.0,2310.2,4.32846031]
[1750703865627,1.03371708,2311.0,2310.2,4.32846031]
[1750703865923,1.03371708,2311.2,2310.6,4.32785976]
[1750703866133,1.03371708,2311.1,2310.6,4.32785976]
[1750703866337,1.03371708,2311.0,2310.6,4.32785976]
[1750703866548,1.03371708,2311.2,2311.0,4.32701244]
[1750703866836,2.03811708,2311.6,2311.1,4.32690693]
[1750703867123,2.03811708,2311.6,2311.0,4.32703519]
[1750703867325,1.03371708,2311.5,2311.1,4.32692635]
[1750703867532,1.03371708,2311.5,2310.7,13.65718173]
[1750703867706,2.50362879,2311.5,2311.1,4.32692407]
[1750703867919,0.13536882,2311.2,2311.1,4.32677415]
[1750703868104,1.0044,2311.6,2310.7,13.6571332]
[1750703868305,0.13533575,2311.5,2311.0,4.32713111]
[1750703868500,1.0193,2311.9,2310.9,4.82731183]
[1750703868501,1.03371708,2311.6,2310.9,4.82720309]
[1750703868705,1.16905681,2311.5,2310.9,0.5]
[1750703868906,0.13533367,2311.4,2311.2,4.3266475]
[1750703869124,1.03371708,2311.6,2311.2,4.3266475]
[1750703869331,0.13533367,2311.5,2311.1,4.32678198]
[1750703869505,0.13533367,2311.4,2311.1,4.32678198]
[1750703869689,1.03371708,2311.6,2311.1,4.32678198]
[1750703869887,1.16905344,2311.5,2311.1,4.32678198]
[1750703870134,0.13533636,2311.4,2311.1,4.32678198]
[1750703870298,1.03371708,2311.7,2311.2,4.32671819]
[1750703870633,1.0193,2311.9,2310.9,0.5]
[1750703870634,1.16905233,2311.6,2311.0,4.32706706]
[1750703870832,1.16905233,2311.5,2311.1,4.32680136]
[1750703871034,0.13533525,2311.4,2311.3,4.32656946]
[1750703871247,1.03371708,2311.7,2311.6,4.32600795]
[1750703871398,0.04,2311.9,2311.6,4.32585486]
[1750703871724,0.13530668,2311.8,2311.7,4.32582082]
[1750703871898,0.13530668,2311.8,2311.6,4.32592569]
[1750703872090,0.04,2311.9,2311.8,4.3256337]
[1750703872293,0.04,2311.9,2311.4,8.281]
[1750703872294,0.17529537,2311.9,2311.4,8.281]
[1750703872530,0.04,2311.9,2311.6,4.32588134]
[1750703872717,12.16622026,2311.8,2310.9,1.4875]
[1750703873045,3.57683648,2311.7,2311.1,4.32681726]
[1750703873198,0.13530318,2311.6,2311.2,4.32665322]
[1750703873400,3.4415333,2311.7,2311.3,4.32655182]
[1750703873631,0.13532448,2311.6,2311.3,4.32655182]
[1750703873840,0.9972,2311.8,2311.3,4.32655182]
[1750703874000,0.13532347,2311.7,2311.3,4.32655182]
[1750703874199,0.13532489,2311.6,2311.3,4.32655182]
[1750703874405,3.15726921,2311.8,2311.0,4.32707775]
[1750703874642,0.13532786,2311.7,2310.9,0.9875]
[1750703874954,0.13532786,2311.6,2311.0,4.32695182]
[1750703875117,3.15726921,2311.8,2311.0,4.32695182]
[1750703875118,0.13533244,2311.5,2311.1,4.32693669]
[1750703875305,3.15726921,2311.8,2311.1,4.32693669]
[1750703875636,0.13533301,2311.7,2311.2,4.32673164]
[1750703875841,0.13533301,2311.6,2311.3,4.32640328]
[1750703876039,0.9972,2311.8,2311.3,4.32640328]
[1750703876249,0.13532488,2311.7,2311.5,4.32609438]
[1750703876401,0.04,2311.9,2311.4,4.3262742]
[1750703876601,0.04,2311.9,2311.8,4.3256337]
[1750703876602,0.17531661,2311.9,2311.8,4.3256337]
[1750703876802,0.04,2311.9,2311.1,0.9784]
[1750703877037,0.04,2311.9,2311.3,4.3265038]
[1750703877241,0.04,2311.9,2311.5,4.32619078]
[1750703877543,0.13531417,2311.8,2311.4,4.32628495]
[1750703877846,0.04,2311.9,2311.3,4.32647743]
[1750703878019,0.13532326,2311.8,2311.3,4.32647743]
[1750703878344,1.24709276,2311.9,2311.3,4.32647743]
[1750703878642,0.13532234,2311.8,2311.6,4.32596337]
[1750703878852,0.04,2311.9,2311.8,4.3256337]
[1750703879140,0.04,2311.9,2311.8,12.5786337]
[1750703879843,0.04,2311.9,2311.8,22.5786337]
[1750703880869,0.04,2311.9,2311.8,4.3256337]
[1750703881233,0.04,2311.9,2311.2,8.253]
[1750703881435,1.5392,2311.8,2310.6,1.0012]
[1750703881761,0.55,2311.6,2310.7,4.32757857]
[1750703881963,0.13530719,2311.5,2310.7,8.253]
[1750703882249,0.9892,2311.2,2310.3,9.2542]
[1750703882413,0.13536564,2311.1,2310.3,9.2542]
[1750703882615,0.60846739,2311.1,2310.6,4.32785296]
[1750703882855,0.1353681,2311.0,2310.5,4.32797912]
[1750703883020,0.1353681,2311.0,2310.3,12.58136328]
[1750703883363,1.6825681,2310.9,2310.1,8.252]
[1750703883572,0.55,2310.7,2310.0,8.252]
[1750703883717,0.9835,2310.4,2309.2,0.9707]
[1750703884047,0.9835,2310.4,2309.6,8.252]
[1750703884048,0.13539843,2310.3,2309.6,8.252]
[1750703884257,0.13539843,2310.2,2309.6,8.252]
[1750703884470,0.55,2310.3,2309.6,12.58164148]
[1750703884630,0.13542192,2310.2,2309.6,12.58164148]
[1750703884834,0.9835,2310.4,2309.8,4.32923803]
[1750703885030,0.9835,2310.4,2309.3,0.89562314]
[1750703885031,0.55,2310.2,2309.3,0.89562314]
[1750703885230,11.87194193,2309.9,2309.3,0.36148729]
[1750703885544,11.87194193,2309.9,2309.1,4.37056451]
[1750703885545,11.87194193,2309.4,2309.1,0.04]
[1750703885882,1.5472,2309.2,2309.1,0.04]
[1750703886028,6.25622,2309.2,2309.1,0.04]
[1750703886230,16.25622,2309.2,2309.1,0.04]
[1750703886477,13.61142696,2311.9,2309.8,30.0759]
[1750703886785,6.00095888,2312.3,2311.8,1.84051]